bitfinex/quotes_ETHUSD_20220308
["timestamp","ask_amount","ask_price","bid_price","bid_amount"]
[1646714912069,3.0298,2542.7,2542.0,0.00554826]
[1646714912070,0.1965,2542.7,2542.0,0.00554826]
[1646714912273,2.3154,2542.8,2542.0,1.31684826]
[1646714912571,1.145,2542.8,2542.0,1.3113]
[1646714912771,1.145,2542.8,2542.2,0.00556107]
[1646714912971,0.99441225,2542.5,2542.2,0.00556107]
[1646714913774,0.99441225,2542.5,2541.9,2.26662]
[1646714914013,0.99441225,2542.5,2542.2,0.00556107]
[1646714914813,0.99441225,2542.5,2541.9,2.26662]
[1646714915214,0.99441225,2542.5,2542.2,0.00556107]
[1646714916013,0.99441225,2542.5,2541.9,2.26662]
[1646714916214,4.49441225,2542.5,2541.9,2.26662]
[1646714916420,4.49292305,2542.5,2542.2,0.00537338]
[1646714916618,0.99292305,2542.5,2542.2,0.00537338]
[1646714916819,4.49292305,2542.5,2542.2,0.00537338]
[1646714917321,4.49292305,2542.5,2541.9,2.26662]
[1646714917517,4.49292305,2542.5,2542.2,0.00537338]
[1646714918364,4.49292305,2542.5,2542.2,0.00418901]
[1646714918564,4.49292305,2542.5,2541.9,2.26662]
[1646714918767,4.49292305,2542.5,2542.2,0.00537048]
[1646714919364,6.46016095,2542.5,2542.2,0.00537048]
[1646714919769,6.46016095,2542.5,2541.8,1.88479251]
[1646714919967,0.93282517,2542.1,2541.8,1.58479251]
[1646714920168,0.93282517,2542.1,2541.8,0.90122251]
[1646714920567,0.93282517,2542.1,2541.8,0.60122251]
[1646714921074,1.91649277,2542.1,2541.8,0.60122251]
[1646714921720,3.5,2542.0,2541.8,0.60122251]
[1646714921920,3.5,2542.0,2541.8,0.0089876]
[1646714922820,5.4676318,2542.0,2541.8,0.0089876]
[1646714923020,1.91663667,2542.1,2541.8,0.0089876]
[1646714923021,3.5,2541.9,2541.8,0.0089876]
[1646714923622,3.5,2541.9,2541.8,0.01454914]
[1646714924624,3.5,2541.9,2541.8,0.0089876]
[1646714927181,3.8911,2541.9,2541.8,0.0089876]
[1646714927581,3.5,2541.9,2541.8,0.0089876]
[1646714927781,3.8911,2541.9,2541.8,0.0089876]
[1646714930122,3.5,2541.9,2541.8,0.0089876]
[1646714932131,2.5881821,2542.0,2541.8,0.0089876]
[1646714932132,1.2133,2542.0,2541.8,0.0089876]
[1646714932775,1.2133,2542.0,2541.9,7.5]
[1646714932965,0.93282517,2542.1,2541.9,7.5]
[1646714934166,1.91647817,2542.1,2541.9,7.5]
[1646714934370,1.91647817,2542.1,2541.9,7.50496161]
[1646714934567,12.5115,2542.5,2541.9,7.50496161]
[1646714934770,1.60322259,2542.4,2541.9,7.99596161]
[1646714934969,0.1965,2542.7,2541.9,7.99596161]
[1646714935170,1.60322268,2542.6,2541.9,7.99596161]
[1646714935370,1.60322268,2542.5,2541.9,7.991]
[1646714935569,4.881,2542.8,2541.9,7.991]
[1646714935570,1.60322268,2542.4,2542.2,0.00497701]
[1646714935770,3.5,2542.6,2542.2,1.97170701]
[1646714935972,1.6032039,2542.5,2542.2,1.97170701]
[1646714936623,1.6032039,2542.5,2542.2,1.96673]
[1646714936821,1.19921367,2542.7,2542.2,1.97170696]
[1646714936822,1.60319445,2542.4,2542.2,1.97170696]
[1646714937125,1.19921367,2542.7,2542.2,1.97170696]
[1646714937322,1.60320006,2542.6,2542.2,1.97170696]
[1646714937725,1.60320006,2542.5,2542.2,1.96673]
[1646714937922,1.1845,2542.8,2542.2,1.96673]
[1646714938123,1.60315498,2542.7,2542.3,0.00497692]
[1646714938322,1.60315498,2542.7,2542.3,0.98835692]
[1646714938724,1.60315498,2542.7,2542.3,1.28835692]
[1646714938924,1.60315498,2542.7,2542.5,25.5]
[1646714940124,1.60315498,2542.7,2542.5,26.48333]
[1646714940568,1.1797808,2543.1,2542.5,26.48333]
[1646714940768,1.60310409,2543.0,2542.5,26.48333]
[1646714941368,1.60167813,2543.0,2542.5,26.48333]
[1646714941571,2.47250382,2543.0,2542.5,26.48333]
[1646714941871,0.87082569,2543.0,2542.5,25.5]
[1646714942071,0.9833981,2542.9,2542.5,25.5]
[1646714944820,0.9832862,2543.1,2542.5,25.5]
[1646714945016,0.9832862,2543.1,2542.5,26.4833]
[1646714945717,0.9832862,2543.1,2542.8,1.20723406]
[1646714945916,3.1243719,2543.2,2542.8,1.20723406]
[1646714945917,1.1576,2543.2,2542.8,1.20723406]
[1646714946117,0.01585398,2543.3,2542.8,1.69823406]
[1646714947222,0.01585398,2543.3,2543.0,29.48298]
[1646714947425,0.01585398,2543.3,2543.2,1.02191738]
[1646714948071,0.01585398,2543.3,2543.2,1.51291738]
[1646714948471,0.01585398,2543.3,2543.2,2.49577738]
[1646714950474,0.01585398,2543.3,2543.2,14.41577738]
[1646714950673,0.01585398,2543.3,2543.2,2.49577738]
[1646714955668,0.01585398,2543.3,2543.2,14.71577738]
[1646714955870,0.01585398,2543.3,2543.2,15.71577738]
[1646714956073,0.00497914,2543.8,2543.4,0.9829]
[1646714956272,0.00497914,2543.8,2543.5,0.27320685]
[1646714957075,0.9829532,2544.0,2543.5,0.27320685]
[1646714957277,0.00497913,2543.8,2543.5,0.27320685]
[1646714957677,1.18622929,2543.8,2543.5,0.27320685]
[1646714958077,2.16427056,2543.8,2543.4,0.3]
[1646714958478,2.16924926,2543.8,2543.3,0.20882299]
[1646714958679,0.3911,2543.7,2543.1,0.00106795]
[1646714959322,0.9508349,2543.4,2543.1,0.00106795]
[1646714959521,0.9508349,2543.4,2543.0,30.76605]
[1646714959721,0.9508349,2543.4,2543.0,28.8]
[1646714960524,1.9339973,2543.4,2543.0,28.8]
[1646714960723,1.9339973,2543.4,2543.0,28.5]
[1646714960724,4.67665496,2543.4,2543.0,28.5]
[1646714960923,2.3250973,2543.4,2543.0,26.79026719]
[1646714961322,1.60293605,2543.3,2543.0,26.79026719]
[1646714961726,3.56978325,2543.3,2543.0,26.79026719]
[1646714961928,2.58634905,2543.2,2543.0,26.79026719]
[1646714962126,0.983413,2543.2,2543.0,26.79026719]
[1646714962626,1.60297151,2543.1,2543.0,26.79026719]
[1646714965678,0.983413,2543.2,2543.0,26.79026719]
[1646714969826,1.60297674,2543.1,2543.0,26.79026719]
[1646714971076,0.983413,2543.2,2543.0,26.79026719]
[1646714971484,0.1965,2543.5,2543.0,26.79026719]
[1646714971485,0.983184,2543.4,2543.0,26.79026719]
[1646714971680,1.60284665,2543.3,2543.0,26.79026719]
[1646714971878,1.60291317,2543.2,2543.0,26.79026719]
[1646714972079,1.9664335,2543.5,2543.0,26.79026719]
[1646714972277,1.60288973,2543.4,2543.0,26.79026719]
[1646714972477,1.10574072,2543.3,2543.0,26.79026719]
[1646714972678,1.60285911,2543.2,2543.0,26.79026719]
[1646714979177,2.58613451,2543.2,2543.0,26.79026719]
[1646714979378,0.9832754,2543.2,2543.0,26.79026719]
[1646714980778,1.60287182,2543.1,2543.0,26.79026719]
[1646714980978,0.9832754,2543.2,2543.1,0.00102381]
[1646714981180,2.58615009,2543.2,2543.1,0.00102381]
[1646714981831,5.72239988,2543.2,2543.1,0.00102381]
[1646714985875,5.8911,2543.1,2543.0,20.42220371]
[1646714986072,5.8911,2543.1,2543.0,20.18385596]
[1646714986073,11.94123674,2543.1,2543.0,20.18385596]
[1646714986272,1.37485,2542.9,2542.4,0.00527132]
[1646714986475,4.74221755,2542.8,2542.4,0.00527132]
[1646714986676,2.74297469,2542.7,2542.4,0.00527132]
[1646714986876,1.60287469,2542.6,2542.4,0.00527132]
[1646714987078,0.95771869,2542.5,2541.9,0.00164786]
[1646714987276,0.95771869,2542.5,2542.1,0.0210857]
[1646714987277,1.60287469,2542.4,2542.1,0.0210857]
[1646714987677,0.95771869,2542.5,2542.1,0.0210857]
[1646714988177,0.9837426,2542.4,2541.8,0.59266997]
[1646714988577,0.9837426,2542.4,2542.2,0.00526111]
[1646714989421,0.9837426,2542.4,2541.8,1.67895751]
[1646714989621,0.9837426,2542.4,2542.2,0.00495181]
[1646714990626,0.9837426,2542.4,2541.8,1.67895751]
[1646714990828,0.9837426,2542.4,2542.2,0.00495181]
[1646714991829,0.9837426,2542.4,2541.8,1.67895751]
[1646714992028,0.9837426,2542.4,2542.2,1.23388341]
[1646714992230,0.9837426,2542.4,2542.2,0.00496295]
[1646714993070,0.9837426,2542.4,2542.0,0.5]
[1646714993271,0.9837426,2542.4,2542.2,0.00496295]
[1646714994275,0.9837426,2542.4,2542.0,0.5]
[1646714994571,0.9837426,2542.4,2542.2,0.00498325]
[1646714994773,3.73036838,2542.4,2542.2,0.00498325]
[1646714994972,0.9837426,2542.4,2542.2,0.00498325]
[1646714995372,0.9837426,2542.4,2542.0,0.00498325]
[1646714995772,0.9837426,2542.4,2542.2,0.00498182]
[1646714996626,0.9837426,2542.4,2541.8,0.0089876]
[1646714996830,1.4914426,2542.4,2541.8,0.0089876]
[1646714997027,0.9838039,2542.2,2541.8,0.0089876]
[1646714998028,0.9838039,2542.2,2541.7,0.51562267]
[1646715000477,0.9838039,2542.2,2541.8,0.00526767]
[1646715001079,0.9838039,2542.2,2541.8,0.02324287]
[1646715001482,0.9838039,2542.2,2541.8,0.0179752]
[1646715001780,0.9838039,2542.2,2541.9,0.00534591]
[1646715002580,0.9838039,2542.2,2541.8,0.0179752]
[1646715002980,0.9838039,2542.2,2541.9,0.00534585]
[1646715003781,0.9838039,2542.2,2541.8,0.0179752]
[1646715004023,0.9838039,2542.2,2541.9,0.00534585]
[1646715005031,0.9838039,2542.2,2541.8,0.0179752]
[1646715005229,0.9838039,2542.2,2541.9,0.00515249]
[1646715006234,0.9838039,2542.2,2541.8,0.0179752]
[1646715006435,0.9838039,2542.2,2541.9,0.00515249]
[1646715007431,0.9838039,2542.2,2541.8,0.0179752]
[1646715007631,0.9838039,2542.2,2541.9,0.00515249]
[1646715008285,2.15022419,2542.2,2541.9,0.00515249]
[1646715008686,2.15022419,2542.2,2541.8,0.0179752]
[1646715008887,2.15022419,2542.2,2541.9,0.00496643]
[1646715009889,2.15022419,2542.2,2541.8,0.0179752]
[1646715010086,2.15022419,2542.2,2541.9,0.00496643]
[1646715011088,2.15022419,2542.2,2541.8,0.0179752]
[1646715011290,2.15022419,2542.2,2541.9,0.00496643]
[1646715011928,3.13412419,2542.2,2541.9,0.00496643]
[1646715012131,4.74205556,2542.1,2541.9,0.00496643]
[1646715012330,5.72427352,2542.0,2541.8,0.00307592]
[1646715012532,4.34914312,2541.9,2541.8,0.00307592]
[1646715012730,4.74024312,2541.9,2541.8,0.00307592]
[1646715012929,1.99467448,2541.9,2541.8,0.00307592]
[1646715015276,1.60357448,2541.9,2541.8,0.00307592]
[1646715015675,0.9840304,2542.0,2541.8,0.00307592]
[1646715016077,1.3751304,2542.0,2541.8,0.00307592]
[1646715016879,1.60371099,2541.9,2541.8,0.00307592]
[1646715017280,1.60371099,2541.9,2541.8,0.00498097]
[1646715017479,1.60368317,2541.9,2541.8,0.00498097]
[1646715017682,1.3751304,2542.0,2541.8,0.00498097]
[1646715018283,0.9839928,2541.8,2541.3,0.72380334]
[1646715018482,0.9839928,2541.8,2541.4,0.01992689]
[1646715018884,2.66842688,2541.7,2541.4,0.01992689]
[1646715019127,0.3911,2541.5,2541.4,0.01992689]
[1646715019330,5.35889683,2541.5,2541.4,0.01992689]
[1646715019527,2.9791604,2541.5,2541.3,0.122781]
[1646715019726,5.36049867,2541.4,2541.3,0.122781]
[1646715019925,1.6038881,2541.4,2541.3,0.122781]
[1646715020129,1.4167,2541.7,2541.3,0.122781]
[1646715020130,1.3867,2541.7,2541.3,0.122781]
[1646715020531,1.19,2541.7,2541.3,0.122781]
[1646715020726,1.19,2541.7,2541.3,1.106551]
[1646715021231,1.19,2541.7,2541.3,5.041451]
[1646715021428,1.19,2541.7,2541.3,6.22433906]
[1646715023376,1.19,2541.7,2541.4,0.00525493]
[1646715023576,0.9838439,2542.0,2541.4,0.00525493]
[1646715023776,1.60365144,2541.9,2541.4,0.00525493]
[1646715024179,1.60365144,2541.9,2541.3,3.27316906]
[1646715024579,1.60365144,2541.9,2541.5,0.00537155]
[1646715024979,1.1265,2542.1,2541.7,1.22130737]
[1646715025182,2.1102788,2542.1,2541.7,1.22130737]
[1646715025587,3.5,2542.0,2541.6,0.3]
[1646715025781,1.6036567,2541.9,2541.8,0.0053713]
[1646715025982,6.5190567,2541.9,2541.8,0.0053713]
[1646715026182,7.5030567,2541.9,2541.8,0.0053713]
[1646715026534,9.4683235,2541.9,2541.8,0.0053713]
[1646715026727,9.4683235,2541.9,2541.3,0.12442886]
[1646715026926,0.3911,2541.7,2541.3,0.122781]
[1646715027129,2.359447,2541.5,2541.3,0.122781]
[1646715027327,5.4947567,2541.4,2541.3,0.122781]
[1646715027529,0.984167,2541.5,2541.3,0.122781]
[1646715027726,1.60384022,2541.4,2541.3,0.122781]
[1646715027927,0.984167,2541.5,2541.3,0.122781]
[1646715028132,1.1537,2541.8,2541.3,0.122781]
[1646715028328,1.60366938,2541.7,2541.3,0.122781]
[1646715028529,1.60366938,2541.7,2541.5,1.09911114]
[1646715029131,1.1537,2541.8,2541.5,1.09911114]
[1646715029328,1.60368116,2541.7,2541.5,1.09911114]
[1646715029529,1.60368116,2541.7,2541.5,1.10416445]
[1646715030271,1.60368116,2541.7,2541.5,1.09911114]
[1646715030470,1.60368116,2541.7,2541.5,1.10416445]
[1646715030775,1.1537,2541.8,2541.5,0.00505331]
[1646715030969,5.10374582,2541.7,2541.5,0.00505331]
[1646715031174,5.10376275,2541.6,2541.5,0.00505331]
[1646715031376,5.4948877,2541.6,2541.5,0.00505331]
[1646715031576,5.4948877,2541.6,2541.3,0.122781]
[1646715031777,3.8911,2541.6,2541.5,0.005036]
[1646715031975,5.49499108,2541.6,2541.5,0.005036]
[1646715032377,6.47912408,2541.6,2541.3,0.11270901]
[1646715032578,0.3911,2541.4,2541.3,0.11270901]
[1646715032777,5.49499108,2541.4,2541.3,0.11270901]
[1646715036324,5.5,2541.2,2541.0,0.13634554]
[1646715036529,5.10389108,2541.1,2541.0,0.00825768]
[1646715036730,5.49499108,2541.1,2541.0,0.00825768]
[1646715037331,5.49499108,2541.1,2540.6,1.21209071]
[1646715037332,5.5082,2541.0,2540.6,1.21209071]
[1646715037530,5.49499108,2540.9,2540.8,0.01651536]
[1646715037772,1.99499108,2540.9,2540.8,0.01651536]
[1646715040474,2.19169108,2540.9,2540.8,0.01651536]
[1646715041276,5.66593142,2540.9,2540.8,0.01651536]
[1646715041538,2.19169108,2540.9,2540.8,0.01651536]
[1646715042025,5.69169108,2540.9,2540.8,0.01651536]
[1646715042728,2.19169108,2540.9,2540.8,0.01651536]
[1646715042927,5.49499108,2540.9,2540.8,0.01651536]
[1646715044628,6.39593935,2540.9,2540.8,0.01651536]
[1646715045873,5.49499108,2540.9,2540.8,0.01651536]
[1646715047779,3.8911,2540.9,2540.8,0.01651536]
[1646715048579,3.5,2540.9,2540.8,0.01651536]
[1646715049824,5.1045033,2540.9,2540.8,0.01651536]
[1646715050023,5.4956033,2540.9,2540.8,0.01651536]
[1646715052230,5.4956033,2540.9,2540.5,0.1765845]
[1646715052429,0.3911,2540.7,2540.5,0.03631252]
[1646715052629,3.5,2540.6,2540.5,0.03631252]
[1646715052875,4.7425,2540.6,2540.5,0.03631252]
[1646715053475,6.73827747,2540.6,2540.5,0.03631252]
[1646715057529,21.78646,2540.5,2540.4,8.64e-05]
[1646715057726,29.74759569,2540.5,2540.4,8.64e-05]
[1646715057926,12.3111,2540.3,2540.2,4.59e-05]
[1646715058127,12.3111,2540.3,2540.0,6.656e-05]
[1646715058128,12.3111,2540.1,2540.0,6.656e-05]
[1646715058325,12.3111,2540.1,2539.8,0.0184352]
[1646715058326,5.8911,2540.0,2539.8,0.0184352]
[1646715058529,5.8911,2540.0,2539.2,0.00158523]
[1646715058530,0.3911,2539.7,2539.2,0.00158523]
[1646715058726,4.87627,2539.6,2539.4,0.0024352]
[1646715058926,3.5,2539.5,2539.4,0.0024352]
[1646715060272,3.8911,2539.5,2539.4,0.0024352]
[1646715061074,3.5,2539.5,2539.4,0.0024352]
[1646715061276,5.9138487,2539.7,2539.4,0.0024352]
[1646715061277,1.6971,2539.7,2539.4,0.0024352]
[1646715061478,1.1728,2539.7,2539.4,0.0024352]
[1646715062180,1.1728,2539.7,2539.6,0.99769914]
[1646715062381,0.1968,2539.9,2539.6,0.99769914]
[1646715062583,3.5,2540.2,2539.6,0.99769914]
[1646715062781,3.5,2540.2,2539.4,0.0024352]
[1646715062982,3.5,2540.2,2539.5,0.00553017]
[1646715063583,0.9846994,2540.1,2539.5,0.00553017]
[1646715063782,3.5,2540.0,2539.5,1.1245748]
[1646715064033,3.5,2540.0,2539.5,1.11904463]
[1646715064223,3.5,2540.0,2539.7,0.00552997]
[1646715065123,3.5,2540.0,2539.5,1.11904463]
[1646715065324,0.9848167,2539.9,2539.5,1.11904463]
[1646715065523,0.9848167,2539.9,2539.7,0.00536408]
[1646715065924,3.5,2539.8,2539.7,0.00536408]
[1646715066329,3.5,2539.8,2539.4,0.0024352]
[1646715066525,3.5,2539.8,2539.6,0.00536417]
[1646715066730,2.2071167,2539.9,2539.6,0.00536417]
[1646715067132,3.5,2539.8,2539.6,0.00536417]
[1646715067332,2.2071167,2539.9,2539.6,0.00536417]
[1646715067529,5.7071167,2539.9,2539.4,0.0024352]
[1646715067771,5.7071167,2539.9,2539.6,0.00536422]
[1646715067973,2.2071167,2539.9,2539.6,0.00536422]
[1646715068474,5.7071167,2539.9,2539.6,0.00536422]
[1646715068674,5.7071167,2539.9,2539.4,0.0024352]
[1646715069176,5.7071167,2539.9,2539.6,0.00522998]
[1646715069576,2.2071167,2539.9,2539.6,0.00522998]
[1646715069979,2.1662067,2540.2,2539.4,0.0024352]
[1646715070182,16.17285667,2540.8,2539.4,0.0024352]
[1646715070183,4.00832436,2540.8,2539.7,0.19556751]
[1646715070379,4.00832436,2540.8,2539.7,0.68656751]
[1646715070380,1.60487181,2540.7,2539.7,0.68656751]
[1646715070580,3.5,2540.6,2539.7,0.68656751]
[1646715070779,3.5,2540.6,2540.0,0.9844]
[1646715070979,1.03626739,2540.4,2540.0,0.9844]
[1646715071384,1.03626739,2540.4,2540.0,0.00522651]
[1646715071833,7.70512482,2540.8,2540.0,0.98966651]
[1646715072031,1.60481334,2540.7,2540.0,0.98966651]
[1646715072434,1.60481334,2540.7,2540.0,0.98444]
[1646715072631,1.60481334,2540.7,2540.3,0.00523283]
[1646715072832,0.01046565,2540.2,2540.0,2.26884]
[1646715073832,0.01046565,2540.2,2540.0,1.28444]
[1646715074032,0.01046565,2540.2,2539.9,1.96878]
[1646715076275,0.01046565,2540.2,2539.9,1.97136007]
[1646715076877,0.01046565,2540.2,2539.9,0.00258007]
[1646715077077,0.01046565,2540.2,2539.8,1.18013751]
[1646715077281,0.01046565,2540.2,2539.6,1.96905]
[1646715077482,1.60502962,2540.1,2539.9,0.00552977]
[1646715077681,3.5,2540.0,2539.9,0.00552977]
[1646715077880,5.10502962,2540.0,2539.9,0.00552977]
[1646715078083,3.5,2540.0,2539.9,0.00552977]
[1646715078282,0.2797,2540.1,2539.7,0.98458]
[1646715078484,1.18289717,2540.1,2539.7,0.98458]
[1646715078683,1.18289717,2540.1,2539.8,0.00552987]
[1646715079124,3.5,2540.0,2539.8,0.00552987]
[1646715079526,1.18289717,2540.1,2539.6,3.08761376]
[1646715079722,1.18289717,2540.1,2539.6,1.96905]
[1646715079923,5.1050139,2540.0,2539.8,0.00552992]
[1646715080124,1.18289717,2540.1,2539.8,0.00552992]
[1646715080327,0.01046565,2540.2,2539.8,0.00552992]
[1646715080525,1.60502704,2540.1,2539.8,0.00552992]
[1646715080722,0.01046565,2540.2,2539.6,1.96905]
[1646715081128,1.60494128,2540.1,2539.9,0.00536392]
[1646715081928,1.60494128,2540.1,2539.7,1.28449]
[1646715082130,1.60494128,2540.1,2539.8,0.98446]
[1646715082330,1.60494128,2540.1,2539.9,0.00536392]
[1646715082979,1.60494128,2540.1,2539.9,0.00778062]
[1646715083176,1.60494128,2540.1,2539.9,0.0024167]
[1646715083377,2.72333741,2540.1,2539.9,0.00778062]
[1646715083576,0.01046565,2540.2,2539.9,0.00778062]
[1646715083778,1.6048802,2540.1,2539.9,0.00778062]
[1646715084277,1.6048802,2540.1,2539.9,0.0024167]
[1646715084777,0.01046565,2540.2,2539.9,0.99214656]
[1646715085580,0.01046565,2540.2,2539.9,0.9869167]
[1646715085778,0.01046565,2540.2,2539.9,0.99183329]
[1646715086939,0.01046565,2540.2,2539.9,0.9869167]
[1646715087138,0.01046565,2540.2,2539.9,0.99183329]
[1646715087939,0.01046565,2540.2,2539.9,0.9869167]
[1646715088142,0.01046565,2540.2,2539.9,0.9918502]
[1646715088542,0.01046565,2540.2,2540.0,1.88561128]
[1646715088740,0.01046565,2540.2,2540.1,0.98442]
[1646715089040,0.01046565,2540.2,2540.1,0.9868367]
[1646715091189,0.01046565,2540.2,2540.1,1.5758767]
[1646715093789,0.01046565,2540.2,2540.1,1.77144421]
[1646715094038,0.01046565,2540.2,2540.1,2.56244421]
[1646715094228,0.01046565,2540.2,2540.1,3.56244421]
[1646715095228,0.01046565,2540.2,2540.1,2.26244421]
[1646715095429,0.01046565,2540.2,2540.1,2.0668767]
[1646715095630,0.00925582,2540.2,2540.1,2.0668767]
[1646715095829,0.00925582,2540.2,2540.1,1.4778367]
[1646715096034,0.00925582,2540.2,2540.1,0.9868367]
[1646715096234,0.00925582,2540.2,2540.1,0.0024167]
[1646715096635,3.50925582,2540.2,2540.1,0.0024167]
[1646715097636,5.11406469,2540.2,2540.0,1.96389661]
[1646715097878,1.19479688,2540.1,2540.0,1.96884741]
[1646715098078,0.00925582,2540.2,2540.0,1.96884741]
[1646715098781,0.00925582,2540.2,2540.0,1.96389661]
[1646715099282,0.00925582,2540.2,2540.0,1.96884754]
[1646715100081,0.00925582,2540.2,2540.0,1.96389661]
[1646715100282,0.00925582,2540.2,2540.0,1.96884754]
[1646715101184,0.00925582,2540.2,2540.0,1.96389661]
[1646715101387,0.00925582,2540.2,2540.0,1.96884753]
[1646715102437,0.00925582,2540.2,2540.0,1.96389661]
[1646715102633,0.00925582,2540.2,2540.0,1.96884753]
[1646715103539,0.00925582,2540.2,2540.0,1.96389661]
[1646715103937,0.00925582,2540.2,2540.0,1.96884753]
[1646715104838,0.00925582,2540.2,2540.0,3.93255661]
[1646715105039,0.00925582,2540.2,2540.1,0.98433]
[1646715106879,0.00925582,2540.2,2540.1,1.28433]
[1646715107080,0.00925582,2540.2,2540.1,1.97089751]
[1646715107283,0.00925582,2540.2,2540.1,4.20690245]
[1646715107681,0.00925582,2540.2,2540.1,2.97089751]
[1646715108080,0.00925582,2540.2,2540.1,1.97089751]
[1646715108281,0.00925582,2540.2,2540.1,2.97089751]
[1646715108480,0.00925582,2540.2,2540.1,1.97089751]
[1646715108682,0.00925582,2540.2,2540.1,2.97089751]
[1646715108885,0.00925582,2540.2,2540.1,1.77533]
[1646715109134,0.00925582,2540.2,2540.1,2.77533]
[1646715109334,0.00925582,2540.2,2540.1,1.77533]
[1646715109535,0.00925582,2540.2,2540.1,2.77533]
[1646715109832,0.00925582,2540.2,2540.1,1.77533]
[1646715110034,0.00925582,2540.2,2540.1,2.77533]
[1646715110233,0.00925582,2540.2,2540.1,1.77533]
[1646715110433,0.00925582,2540.2,2540.1,2.77533]
[1646715111136,0.00925582,2540.2,2540.1,2.47533]
[1646715111335,0.00925582,2540.2,2540.1,1.47533]
[1646715113378,0.00925582,2540.2,2540.0,3.93255661]
[1646715113578,0.93555582,2540.2,2540.0,0.00495086]
[1646715114377,0.93555582,2540.2,2539.9,1.96886]
[1646715114576,1.18275233,2540.0,2539.9,1.96886]
[1646715115778,11.13487027,2540.0,2539.9,1.96886]
[1646715116380,11.13487027,2540.0,2539.9,1.91886]
[1646715118235,9.95211794,2540.0,2539.9,1.91886]
[1646715119934,14.61651794,2540.0,2539.9,1.91886]
[1646715120134,11.11651794,2540.0,2539.9,1.91886]
[1646715121380,11.11651794,2540.0,2539.9,2.50286755]
[1646715122986,14.61651794,2540.0,2539.9,2.50286755]
[1646715123187,11.11651794,2540.0,2539.9,1.56854755]
[1646715123387,12.02712751,2540.0,2539.9,1.56854755]
[1646715123890,12.02712751,2540.0,2539.9,0.98454]
[1646715124340,11.11651794,2540.0,2539.9,0.98454]
[1646715125437,12.33588231,2540.0,2539.9,0.98454]
[1646715125738,17.44074664,2540.0,2539.8,0.00495111]
[1646715125941,3.5,2539.9,2539.8,0.00495111]
[1646715126138,5.10492105,2539.9,2539.8,0.00495111]
[1646715126339,5.10492105,2539.9,2539.7,1.28446]
[1646715126638,3.5,2539.8,2539.7,1.28941117]
[1646715127640,3.5,2539.8,2539.7,1.28446]
[1646715128483,3.5,2539.9,2539.7,1.28446]
[1646715128681,11.17148231,2540.0,2539.8,0.98458]
[1646715128884,3.5,2539.9,2539.8,0.98458]
[1646715129083,11.17148231,2540.0,2539.8,0.98458]
[1646715129786,9.95211794,2540.0,2539.8,0.98458]
[1646715129986,9.95211794,2540.0,2539.8,2.95352]
[1646715130282,9.95211794,2540.0,2539.8,2.95847112]
[1646715130482,9.95211794,2540.0,2539.9,1.96869]
[1646715133145,9.95211794,2540.0,2539.7,0.43992874]
[1646715133343,9.95211794,2540.0,2539.7,0.13992874]
[1646715133745,9.95211794,2540.0,2539.7,1.12436874]
[1646715134346,9.95211794,2540.0,2539.9,1.96869]
[1646715134646,13.45211794,2540.0,2539.4,2.9556452]
[1646715135047,13.45211794,2540.0,2539.7,0.00229538]
[1646715135276,3.5,2539.9,2539.7,0.00229538]
[1646715135676,1.16839691,2539.9,2539.7,0.00229538]
[1646715135882,9.95211794,2540.0,2539.7,0.00229538]
[1646715136081,9.95211794,2540.0,2539.4,4.01396819]
[1646715136282,9.95211794,2540.0,2539.7,0.00229538]
[1646715136784,9.95211794,2540.0,2539.8,0.98457]
[1646715136982,9.95211794,2540.0,2539.8,2.95339]
[1646715137281,9.95211794,2540.0,2539.9,1.19333714]
[1646715139630,9.95211794,2540.0,2539.8,0.98457]
[1646715139833,9.95211794,2540.0,2539.7,2.27428513]
[1646715140237,3.5,2539.9,2539.7,1.97428513]
[1646715140639,9.95211794,2540.0,2539.7,1.97428513]
[1646715140835,9.95211794,2540.0,2539.7,1.96895]
[1646715140836,0.89769133,2539.8,2539.7,1.96895]
[1646715141035,5.36119133,2539.8,2539.7,1.97428495]
[1646715141243,6.96628844,2539.8,2539.7,0.00533495]
[1646715141440,0.0106699,2539.6,2539.4,0.0024352]
[1646715141637,3.5106699,2539.6,2539.4,0.0024352]
[1646715143585,0.0106699,2539.6,2539.4,0.9871552]
[1646715145991,0.0106699,2539.6,2539.4,0.99268552]
[1646715146193,0.0106699,2539.6,2539.4,1.18825303]
[1646715146933,0.0106699,2539.6,2539.4,1.18272271]
[1646715147133,0.0106699,2539.6,2539.4,1.18825303]
[1646715148137,0.0106699,2539.6,2539.4,1.18272271]
[1646715148341,0.0106699,2539.6,2539.4,1.18825303]
[1646715150496,0.0106699,2539.6,2539.4,1.18272271]
[1646715150683,0.0106699,2539.6,2539.4,1.18806638]
[1646715151685,0.0106699,2539.6,2539.4,1.18272271]
[1646715151886,0.0106699,2539.6,2539.4,1.18806638]
[1646715152887,0.0106699,2539.6,2539.4,0.9871552]
[1646715153088,0.0106699,2539.6,2539.4,0.99249887]
[1646715154138,0.0106699,2539.6,2539.4,0.9871552]
[1646715154335,0.0106699,2539.6,2539.4,0.99239789]
[1646715154635,1.15607994,2539.6,2539.4,0.99239789]
[1646715155335,1.15607994,2539.6,2539.4,0.9871552]
[1646715155536,1.15607994,2539.6,2539.4,0.99239789]
[1646715155741,0.0106699,2539.6,2539.4,0.99239789]
[1646715156542,0.0106699,2539.6,2539.4,0.9871552]
[1646715156743,0.0106699,2539.6,2539.4,0.99239789]
[1646715157791,0.0106699,2539.6,2539.4,0.9871552]
[1646715157984,0.0106699,2539.6,2539.4,0.99239131]
[1646715158785,2.5631259,2539.6,2539.4,0.9871552]
[1646715159185,2.5631259,2539.6,2539.4,0.99239131]
[1646715159986,2.5631259,2539.6,2539.4,2.11071096]
[1646715160388,2.5631259,2539.6,2539.4,2.11594707]
[1646715161087,2.5631259,2539.6,2539.4,0.99239131]
[1646715161287,2.5631259,2539.6,2539.4,0.9871552]
[1646715161530,2.5631259,2539.6,2539.4,0.99239175]
[1646715162233,1.02359626,2539.5,2539.4,0.00767175]
[1646715162434,1.02250685,2539.5,2539.4,0.0024352]
[1646715162834,1.02250685,2539.5,2539.4,0.00767175]
[1646715163636,1.02250685,2539.5,2539.4,0.0024352]
[1646715164738,2.5631259,2539.6,2539.4,0.0024352]
[1646715166091,2.5631259,2539.6,2539.5,0.98465]
[1646715168490,2.5631259,2539.6,2539.5,0.93465]
[1646715170636,2.5631259,2539.6,2539.4,0.30767167]
[1646715170837,2.5631259,2539.6,2539.4,0.0024352]
[1646715171239,5.1155819,2539.6,2539.4,0.00767167]
[1646715172041,3.5,2539.5,2539.4,0.0024352]
[1646715172540,3.5,2539.5,2539.4,0.00767172]
[1646715172794,8.6155819,2539.6,2539.4,0.00767172]
[1646715172985,3.5,2539.5,2539.4,0.00767172]